fUSD/lending_fUSD_20251120
["ID","MTS","AMOUNT","RATE_DAILY","PERIOD"]
[394496357,1763632367756,-1200.0,0.00016127,2]
[394496358,1763632367791,-7600.01,0.00016128,2]
[394496359,1763632367949,156.64935,0.00042041,120]
[394496360,1763632368093,-10000.01,0.00016128,2]
[394496361,1763632368252,156.64935,0.00042041,120]
[394496362,1763632368427,-10000.01,0.00016128,2]
[394496363,1763632368596,156.64935,0.00042041,120]
[394496364,1763632368712,-10000.01,0.00016128,2]
[394496365,1763632368914,156.64935,0.00042041,120]
[394496366,1763632369242,156.64935,0.00042041,120]
[394496367,1763632369564,156.64935,0.00042041,120]
[394496368,1763632369886,156.64935,0.00042041,120]
[394496369,1763632370197,156.64935,0.00042041,120]
[394496370,1763632370507,156.64935,0.00042041,120]
[394496371,1763632370798,-10000.01,0.00016128,2]
[394496372,1763632370858,156.64935,0.00042041,120]
[394496373,1763632371162,156.64935,0.00042041,120]
[394496374,1763632371587,156.64935,0.00042041,120]
[394496375,1763632371861,156.64935,0.00042041,120]
[394496376,1763632372194,156.64935,0.00042041,120]
[394496377,1763632372537,156.64935,0.00042041,120]
[394496378,1763632372878,156.64935,0.00042041,120]
[394496379,1763632373201,156.64935,0.00042041,120]
[394496380,1763632373587,156.64935,0.00042041,120]
[394496381,1763632374013,-10000.01,0.00016128,2]
[394496382,1763632374461,-10000.01,0.00016128,2]
[394496385,1763632376952,-10000.01,0.00016128,2]
[394496386,1763632380005,-10000.01,0.00016128,2]
[394496387,1763632380111,-10000.01,0.00016128,2]
[394496438,1763632385846,159.0727626,0.00042041,120]
[394496443,1763632386169,-300.0,0.00016127,2]
[394496446,1763632386212,-9400.01,0.00016128,2]
[394496450,1763632386324,-10000.01,0.00016128,2]
[394496516,1763632392382,-10000.01,0.00016128,2]
[394496518,1763632392650,-10000.01,0.00016128,2]
[394496525,1763632398370,-10000.01,0.00016128,2]
[394496546,1763632434960,-10000.01,0.00016128,2]
[394496547,1763632435733,-10000.01,0.00016128,2]
[394496548,1763632436157,-10000.01,0.00016128,2]
[394496549,1763632436542,-10000.01,0.00016128,2]
[394496550,1763632436750,-2586.82305513,0.00016128,2]
[394496551,1763632436787,-4826.36388974,0.00016128,2]
[394496554,1763632437978,-2123.02598974,0.00016128,2]
[394496555,1763632438017,-5753.95802052,0.00016128,2]
[394496622,1763632447017,-2500.0,0.00016128,2]
[394496675,1763632460419,482.5206,0.00016028,2]
[394496751,1763632504013,4517.4894,0.00016028,2]
[394496752,1763632504039,10000.01,0.00016028,2]
[394496753,1763632504066,10000.01,0.00016028,2]
[394496754,1763632504091,10000.01,0.00016028,2]
[394496755,1763632504116,10000.01,0.00016028,2]
[394496758,1763632505465,-263.27602428,0.00016028,2]
[394496761,1763632508746,-426.10899248,0.00016028,2]
[394496763,1763632509525,-5000.0,0.00016028,2]
[394496764,1763632511527,-155.60567164,0.00016028,2]
[394496765,1763632512106,-10000.01,0.00016028,2]
[394496766,1763632512232,-10000.01,0.00016028,2]
[394496767,1763632512351,-10000.01,0.00016028,2]
[394496768,1763632512472,-10000.01,0.00016028,2]
[394496770,1763632512591,-10000.01,0.00016028,2]
[394496773,1763632513109,-264.08092578,0.00016028,2]
[394496774,1763632514556,-446.53305701,0.00016028,2]
[394496780,1763632518198,-10000.01,0.00016028,2]
[394496781,1763632518439,-10000.01,0.00016028,2]
[394496784,1763632518568,-10000.01,0.00016028,2]
[394496785,1763632518685,-10000.01,0.00016028,2]
[394496786,1763632520049,-270.34750041,0.00016028,2]
[394496788,1763632522881,-185.91907422,0.00016028,2]
[394496789,1763632524321,-10000.01,0.00016028,2]
[394496790,1763632524456,-10000.01,0.00016028,2]
[394496791,1763632524580,-10000.01,0.00016028,2]
[394496792,1763632524688,-10000.01,0.00016028,2]
[394496793,1763632525145,-152.0395623,0.00016028,2]
[394496794,1763632527488,-265.90041448,0.00016028,2]
[394496795,1763632527582,-10000.01,0.00016028,2]
[394496796,1763632529055,-178.51051393,0.00016028,2]
[394496797,1763632530535,-10000.01,0.00016028,2]
[394496798,1763632530566,-10000.01,0.00016028,2]
[394496799,1763632530679,-10000.01,0.00016028,2]
[394496800,1763632530795,-10000.01,0.00016028,2]
[394496801,1763632531153,-247.95958552,0.00016028,2]
[394496802,1763632533824,-179.56715013,0.00016028,2]
[394496803,1763632535304,-346.6648598,0.00016028,2]
[394496804,1763632536573,-10000.01,0.00016028,2]
[394496805,1763632536689,-10000.01,0.00016028,2]
[394496806,1763632536812,-10000.01,0.00016028,2]
[394496807,1763632536927,-10000.01,0.00016028,2]
[394496808,1763632537046,-10000.01,0.00016028,2]
[394496809,1763632537499,-200.0,0.00016028,2]
[394496813,1763632539709,-218.84,0.00016028,2]
[394496815,1763632542671,-10000.01,0.00016028,2]
[394496816,1763632542821,-10000.01,0.00016028,2]
[394496817,1763632542950,-10000.01,0.00016028,2]
[394496818,1763632543045,-10000.01,0.00016028,2]
[394496819,1763632543162,-10000.01,0.00016028,2]
[394496823,1763632549009,-10000.01,0.00016028,2]
[394496824,1763632549049,-10000.01,0.00016028,2]
[394496825,1763632549067,-10000.01,0.00016028,2]
[394496831,1763632554903,-10000.01,0.00016028,2]
[394496832,1763632555015,-10000.01,0.00016028,2]
[394496833,1763632555128,-10000.01,0.00016028,2]
[394496834,1763632555255,-10000.01,0.00016028,2]
[394496836,1763632558111,-10000.01,0.00016028,2]
[394496837,1763632558307,-10000.01,0.00016028,2]
[394496838,1763632558411,-10000.01,0.00016028,2]
[394496839,1763632558568,-10000.01,0.00016028,2]
[394496840,1763632558671,-10000.01,0.00016028,2]
[394496841,1763632558844,-10000.01,0.00016028,2]
[394496845,1763632561073,-10000.01,0.00016028,2]
[394496846,1763632561330,-10000.01,0.00016028,2]
[394496847,1763632561443,-10000.01,0.00016028,2]
[394496848,1763632561560,-10000.01,0.00016028,2]
[394496850,1763632564252,-10000.01,0.00016028,2]
[394496851,1763632564679,-10000.01,0.00016028,2]
[394496852,1763632564808,-10000.01,0.00016028,2]
[394496853,1763632564918,-10000.01,0.00016028,2]
[394496854,1763632565016,-10000.01,0.00016028,2]
[394496855,1763632565122,-10000.01,0.00016028,2]
[394496858,1763632567110,-10000.01,0.00016028,2]
[394496859,1763632567247,-10000.01,0.00016028,2]
[394496860,1763632567382,-10000.01,0.00016028,2]
[394496861,1763632567484,-10000.01,0.00016028,2]
[394496863,1763632570402,-10000.01,0.00016028,2]
[394496864,1763632570606,-10000.01,0.00016028,2]
[394496865,1763632570720,-10000.01,0.00016028,2]
[394496866,1763632570895,-10000.01,0.00016028,2]
[394496867,1763632571018,-10000.01,0.00016028,2]
[394496868,1763632571128,-10000.01,0.00016028,2]
[394496870,1763632573300,-10000.01,0.00016028,2]
[394496871,1763632573403,-10000.01,0.00016028,2]
[394496872,1763632573560,-10000.01,0.00016028,2]
[394496873,1763632573674,-10000.01,0.00016028,2]
[394496876,1763632576514,-10000.01,0.00016028,2]
[394496877,1763632576719,-10000.01,0.00016028,2]
[394496878,1763632576842,-10000.01,0.00016028,2]
[394496879,1763632576960,-10000.01,0.00016028,2]
[394496880,1763632577075,-10000.01,0.00016028,2]
[394496881,1763632577200,-3319.59273198,0.00016028,2]
[394496882,1763632577224,-3360.82453604,0.00016028,2]
[394496883,1763632579395,-307.55150583,0.00016028,2]
[394496893,1763632633693,426.109,0.00016028,2]
[394496908,1763632667516,8958.79798834,0.00016028,2]
[394496909,1763632667542,10000.01,0.00016028,2]
[394496910,1763632667567,10000.01,0.00016028,2]
[394496911,1763632667592,10000.01,0.00016028,2]
[394496912,1763632667617,10000.01,0.00016028,2]
[394496913,1763632667643,10000.01,0.00016028,2]
[394496914,1763632667670,10000.01,0.00016028,2]
[394496915,1763632667696,10000.01,0.00016028,2]
[394496916,1763632667722,10000.01,0.00016028,2]
[394496917,1763632667751,10000.01,0.00016028,2]
[394496920,1763632674414,-615.10301166,0.00016028,2]
[394496922,1763632676101,-10000.01,0.00016028,2]
[394496923,1763632676225,-10000.01,0.00016028,2]
[394496924,1763632676458,-10000.01,0.00016028,2]
[394496925,1763632676564,-10000.01,0.00016028,2]
[394496926,1763632676739,-10000.01,0.00016028,2]
[394496927,1763632676912,-10000.01,0.00016028,2]
[394496928,1763632677025,-10000.01,0.00016028,2]
[394496929,1763632677147,-10000.01,0.00016028,2]
[394496930,1763632677255,-10000.01,0.00016028,2]
[394496931,1763632677407,-10000.01,0.00016028,2]
[394496934,1763632682266,-300.0,0.00016027,2]
[394496935,1763632682300,-9400.01,0.00016028,2]
[394496936,1763632682365,-10000.01,0.00016028,2]
[394496937,1763632682486,-10000.01,0.00016028,2]
[394496938,1763632682617,-10000.01,0.00016028,2]
[394496939,1763632682718,-10000.01,0.00016028,2]
[394496941,1763632682888,-10000.01,0.00016028,2]
[394496942,1763632682989,-10000.01,0.00016028,2]
[394496943,1763632683134,-10000.01,0.00016028,2]
[394496944,1763632683256,-10000.01,0.00016028,2]
[394496945,1763632683372,-10000.01,0.00016028,2]
[394496948,1763632688491,-10000.01,0.00016028,2]
[394496949,1763632688506,-10000.01,0.00016028,2]
[394496950,1763632688605,-10000.01,0.00016028,2]
[394496951,1763632688764,-10000.01,0.00016028,2]
[394496952,1763632688868,-10000.01,0.00016028,2]
[394496953,1763632688978,-10000.01,0.00016028,2]
[394496954,1763632689089,-10000.01,0.00016028,2]
[394496955,1763632689375,-10000.01,0.00016028,2]
[394496958,1763632689482,-10000.01,0.00016028,2]
[394496960,1763632689595,-10000.01,0.00016028,2]
[394496965,1763632694480,-10000.01,0.00016028,2]
[394496966,1763632694723,-10000.01,0.00016028,2]
[394496967,1763632694849,-10000.01,0.00016028,2]
[394496968,1763632694980,-10000.01,0.00016028,2]
[394496969,1763632695090,-10000.01,0.00016028,2]
[394496970,1763632695193,-10000.01,0.00016028,2]
[394496972,1763632695320,-10000.01,0.00016028,2]
[394496973,1763632695429,-10000.01,0.00016028,2]
[394496974,1763632695530,-10000.01,0.00016028,2]
[394496975,1763632695626,-10000.01,0.00016028,2]
[394496979,1763632700571,-10000.01,0.00016028,2]
[394496980,1763632700694,-10000.01,0.00016028,2]
[394496981,1763632700924,-10000.01,0.00016028,2]
[394496982,1763632701063,-10000.01,0.00016028,2]
[394496983,1763632701203,-10000.01,0.00016028,2]
[394496984,1763632701326,-10000.01,0.00016028,2]
[394496985,1763632701470,-10000.01,0.00016028,2]
[394496986,1763632701575,-10000.01,0.00016028,2]
[394496987,1763632701729,-10000.01,0.00016028,2]
[394496989,1763632701836,-10000.01,0.00016028,2]
[394496993,1763632706676,-10000.01,0.00016028,2]
[394496994,1763632706812,-10000.01,0.00016028,2]
[394496995,1763632706919,-10000.01,0.00016028,2]
[394496996,1763632707054,-10000.01,0.00016028,2]
[394496997,1763632707212,-10000.01,0.00016028,2]
[394496998,1763632707312,-10000.01,0.00016028,2]
[394496999,1763632707411,-10000.01,0.00016028,2]
[394497002,1763632707811,-10000.01,0.00016028,2]
[394497003,1763632707826,-10000.01,0.00016028,2]
[394497004,1763632708022,-10000.01,0.00016028,2]
[394497008,1763632712798,-10000.01,0.00016028,2]
[394497009,1763632712918,-10000.01,0.00016028,2]
[394497010,1763632713049,-10000.01,0.00016028,2]
[394497011,1763632713171,-10000.01,0.00016028,2]
[394497012,1763632713287,-10000.01,0.00016028,2]
[394497013,1763632713403,-10000.01,0.00016028,2]
[394497014,1763632713518,-1025.349,0.00016028,2]
[394497023,1763632807676,200.0,0.00016028,2]
[394497031,1763632898990,500.0,0.00016027,2]
[394497033,1763632912732,500.0,0.00016027,2]
[394497034,1763632926813,577.50398757,0.00016027,2]
[394497037,1763632936109,-250.0,0.00016128,2]
[394497038,1763632936131,-509.1770438,0.00016128,2]
[394497039,1763632936152,-200.0,0.00016188,2]
[394497040,1763632936172,-270.8229562,0.00016227,2]
[394497043,1763632983825,510.25527032,0.00016027,2]
[394497045,1763633006398,239.50825766,0.00041995,120]
[394497047,1763633034488,472.7681954,0.00016028,2]
[394497048,1763633034773,262.44895487,0.00041995,120]
[394497054,1763633071905,500.0,0.00016027,2]
[394497055,1763633091934,1000.0,0.00041995,120]
[394497056,1763633092173,1000.0,0.00041995,120]
[394497057,1763633092436,1000.0,0.00041995,120]
[394497058,1763633092700,1000.0,0.00041995,120]
[394497059,1763633093004,1000.0,0.00041995,120]
[394497060,1763633093248,1000.0,0.00041995,120]
[394497061,1763633093511,1000.0,0.00041995,120]
[394497062,1763633093770,1000.0,0.00041995,120]
[394497063,1763633094016,1000.0,0.00041995,120]
[394497064,1763633094295,1000.0,0.00041995,120]
[394497065,1763633094550,1000.0,0.00041995,120]
[394497067,1763633094781,1000.0,0.00041995,120]
[394497068,1763633095094,279.50929601,0.00041995,120]
[394497072,1763633296375,229.1770438,0.00016027,2]
[394497079,1763633427409,6526.8,9.794e-05,2]
[394497080,1763633427617,2744.0329562,0.00010309,2]
[394497081,1763633427640,3782.7670438,0.00010309,2]
[394497082,1763633428014,6217.2429562,0.00010825,2]
[394497083,1763633428039,309.5570438,0.00010825,2]
[394497084,1763633428069,6526.8,0.0001134,2]
[394497085,1763633428240,3163.6529562,0.00011856,2]
[394497086,1763633428264,3363.1470438,0.00011856,2]
[394497087,1763633428442,6526.8,0.00012371,2]
[394497088,1763633428859,110.0629562,0.00012886,2]
[394497089,1763633428883,6416.7370438,0.00012886,2]
[394497090,1763633429105,3583.2729562,0.00013402,2]
[394497091,1763633429130,2943.5270438,0.00013402,2]
[394497092,1763633429270,6526.8,0.00013917,2]
[394497093,1763633429572,529.6829562,0.00014433,2]
[394497094,1763633429596,5997.1170438,0.00014433,2]
[394497095,1763633429774,4002.8929562,0.00014948,2]
[394497096,1763633429804,2523.9070438,0.00014948,2]
[394497097,1763633429990,6526.8,0.00015464,2]
[394497098,1763633430203,949.3029562,0.00015979,2]
[394497099,1763633430228,5577.4970438,0.00015979,2]
[394497105,1763633432168,-250.0,0.00016252,2]
[394497106,1763633432179,-516.02328025,0.00016327,2]
[394497107,1763633432189,-200.0,0.0001635,2]
[394497108,1763633432199,-237.43982258,0.00016414,2]
[394497109,1763633432208,-1966.59,0.00016438,2]
[394497110,1763633432222,-6526.8,0.00016495,2]
[394497111,1763633432238,-200.0,0.00016514,2]
[394497112,1763633432248,-200.0,0.00016679,2]
[394497113,1763633432259,-250.0,0.0001673,2]
[394497114,1763633432270,-250.0,0.00017,2]
[394497115,1763633432280,-6526.8,0.0001701,2]
[394497116,1763633432290,-1000.0,0.00017427,2]
[394497117,1763633432300,-884.0,0.00017427,2]
[394497118,1763633432309,-550.0,0.00017427,2]
[394497119,1763633432319,-300.0,0.00017427,2]
[394497120,1763633432329,-1200.0,0.00017427,2]
[394497121,1763633432339,-280.4614,0.00017428,2]
[394497122,1763633432349,-623.074,0.00017428,2]
[394497123,1763633432359,-55457.39957788,0.00017428,2]
[394497124,1763633432371,-13937.33032212,0.00017428,2]
[394497125,1763633432381,-2500.0,0.00017428,2]
[394497126,1763633432390,-1185.3798,0.00017428,2]
[394497127,1763633432400,-166.93654519,0.00017428,2]
[394497128,1763633432410,-151.0,0.00017464,2]
[394497129,1763633432420,-1453.79006495,0.00017473,2]
[394497130,1763633432429,-766.85186529,0.00017473,2]
[394497131,1763633432439,-1438.937,0.0001751,2]
[394497132,1763633432449,-181.94644993,0.0001751,2]
[394497133,1763633432459,-6526.8,0.00017526,2]
[394497134,1763633432468,-501.05133945,0.00017527,2]
[394497135,1763633432478,-500.0,0.00017527,2]
[394497136,1763633432486,-160.36482522,0.00017527,2]
[394497137,1763633432495,-500.0,0.00017527,2]
[394497138,1763633432505,-500.0,0.00017527,2]
[394497139,1763633432514,-500.0,0.00017527,2]
[394497140,1763633432523,-500.0,0.00017527,2]
[394497141,1763633432533,-213.59569935,0.00017527,2]
[394497142,1763633432546,-500.0,0.00017527,2]
[394497143,1763633432560,-500.0,0.00017527,2]
[394497144,1763633432570,-500.0,0.00017527,2]
[394497145,1763633432581,-500.0,0.00017527,2]
[394497146,1763633432591,-500.0,0.00017527,2]
[394497147,1763633432601,-500.0,0.00017527,2]
[394497148,1763633432611,-500.0,0.00017527,2]
[394497149,1763633432622,-500.0,0.00017527,2]
[394497150,1763633432633,-500.0,0.00017527,2]
[394497151,1763633432644,-500.0,0.00017527,2]
[394497152,1763633432654,-500.0,0.00017527,2]
[394497153,1763633432664,-500.0,0.00017527,2]
[394497154,1763633432674,-500.0,0.00017527,2]
[394497155,1763633432684,-500.0,0.00017527,2]
[394497156,1763633432694,-500.0,0.00017527,2]
[394497157,1763633432704,-500.0,0.00017527,2]
[394497158,1763633432715,-500.0,0.00017527,2]
[394497159,1763633432726,-500.0,0.00017527,2]
[394497160,1763633432736,-500.0,0.00017527,2]
[394497161,1763633432746,-500.0,0.00017527,2]
[394497162,1763633432757,-601.30131362,0.00017527,2]
[394497163,1763633432767,-500.0,0.00017527,2]
[394497164,1763633432777,-500.0,0.00017527,2]
[394497165,1763633432787,-500.0,0.00017527,2]
[394497166,1763633432797,-500.0,0.00017527,2]
[394497167,1763633432808,-500.0,0.00017527,2]
[394497168,1763633432819,-500.0,0.00017527,2]
[394497169,1763633432828,-500.0,0.00017527,2]
[394497170,1763633432838,-500.0,0.00017527,2]
[394497171,1763633432848,-500.0,0.00017527,2]
[394497172,1763633432858,-500.0,0.00017527,2]
[394497173,1763633432868,-500.0,0.00017527,2]
[394497174,1763633432878,-500.0,0.00017527,2]
[394497175,1763633432888,-500.0,0.00017527,2]
[394497176,1763633432898,-500.0,0.00017527,2]
[394497177,1763633432908,-500.0,0.00017527,2]
[394497178,1763633432917,-500.0,0.00017527,2]
[394497179,1763633432927,-500.0,0.00017527,2]
[394497180,1763633432937,-500.0,0.00017527,2]
[394497181,1763633432947,-500.0,0.00017527,2]
[394497182,1763633432956,-500.0,0.00017527,2]
[394497183,1763633432966,-500.0,0.00017527,2]
[394497184,1763633432975,-500.0,0.00017527,2]
[394497185,1763633432985,-500.0,0.00017527,2]
[394497186,1763633432994,-500.0,0.00017527,2]
[394497187,1763633433003,-500.0,0.00017527,2]
[394497188,1763633433013,-500.0,0.00017527,2]
[394497189,1763633433024,-500.0,0.00017527,2]
[394497190,1763633433036,-500.0,0.00017527,2]
[394497191,1763633433046,-500.0,0.00017527,2]
[394497192,1763633433056,-500.0,0.00017527,2]
[394497193,1763633433066,-500.0,0.00017527,2]
[394497195,1763633433076,-500.0,0.00017527,2]
[394497197,1763633433086,-642.23644682,0.00017527,2]
[394497199,1763633433095,-642.23644682,0.00017527,2]
[394497201,1763633433105,-500.0,0.00017527,2]
[394497203,1763633433115,-500.0,0.00017527,2]
[394497205,1763633433125,-500.0,0.00017527,2]
[394497207,1763633433139,-500.0,0.00017527,2]
[394497210,1763633433149,-500.0,0.00017527,2]
[394497211,1763633433158,-500.0,0.00017527,2]
[394497212,1763633433168,-500.0,0.00017527,2]
[394497213,1763633433179,-248.01905404,0.00017527,2]
[394497214,1763633433193,-251.98094596,0.00017527,2]
[394497215,1763633433203,-500.0,0.00017527,2]
[394497216,1763633433217,-500.0,0.00017527,2]
[394497217,1763633433228,-500.0,0.00017527,2]
[394497218,1763633433238,-500.0,0.00017527,2]
[394497219,1763633433248,-514.44061876,0.00017527,2]
[394497220,1763633433258,-500.0,0.00017527,2]
[394497221,1763633433269,-545.64351995,0.00017527,2]
[394497222,1763633433279,-545.64351995,0.00017527,2]
[394497223,1763633433290,-545.64351995,0.00017527,2]
[394497224,1763633433300,-545.64351995,0.00017527,2]
[394497225,1763633433310,-545.64351995,0.00017527,2]
[394497226,1763633433319,-545.64351995,0.00017527,2]
[394497227,1763633433328,-545.64351995,0.00017527,2]
[394497228,1763633433339,-545.64351995,0.00017527,2]
[394497229,1763633433348,-545.64351995,0.00017527,2]
[394497230,1763633433357,-545.64351995,0.00017527,2]
[394497231,1763633433367,-545.64351995,0.00017527,2]
[394497232,1763633433377,-545.64351995,0.00017527,2]
[394497234,1763633433387,-545.64351995,0.00017527,2]
[394497235,1763633433396,-545.64351995,0.00017527,2]
[394497236,1763633433406,-545.64351995,0.00017527,2]
[394497237,1763633433416,-545.64351995,0.00017527,2]
[394497238,1763633433425,-529.81,0.00017527,2]
[394497239,1763633433435,-500.0,0.00017527,2]
[394497240,1763633433444,-500.0,0.00017527,2]
[394497241,1763633433455,-274.15,0.00017527,2]
[394497242,1763633433465,-94547.86343613,0.00017528,2]
[394497243,1763633433477,-287.70439375,0.00017528,2]
[394497245,1763633437973,-32533.413192,0.00017528,2]
[394497246,1763633438025,-3452.87994817,0.00017528,2]
[394497247,1763633438079,-474.71000045,0.00017528,2]
[394497248,1763633438187,-30050.29239659,0.00017528,2]
[394497258,1763633440078,-598653.13663291,0.00017528,2]
[394497259,1763633440087,-501.23611998,0.00017573,2]
[394497260,1763633440097,-501.59027207,0.00017573,2]
[394497261,1763633440108,-500.0,0.00017573,2]
[394497262,1763633440118,-500.0,0.00017573,2]
[394497263,1763633440128,-500.0,0.00017573,2]
[394497264,1763633440143,-500.0,0.00017573,2]
[394497265,1763633440153,-200.0,0.00017573,2]
[394497266,1763633440162,-500.0,0.00017573,2]
[394497267,1763633440172,-500.0,0.00017573,2]
[394497268,1763633440183,-506.91267171,0.00017573,2]
[394497269,1763633440193,-25602.73519137,0.00017582,2]
[394497270,1763633440203,-150.0,0.00017611,2]
[394497271,1763633440213,-260.0,0.00017611,2]
[394497272,1763633440223,-150.0,0.00017611,2]
[394497273,1763633440233,-150.0,0.00017611,2]
[394497274,1763633440243,-500.0,0.00017627,2]
[394497275,1763633440253,-500.0,0.00017673,2]
[394497276,1763633440263,-601.26289258,0.00017702,2]
[394497277,1763633440274,-343.0,0.00017703,2]
[394497278,1763633440284,-343.0,0.00017741,2]
[394497279,1763633440295,-180.38262795,0.00017773,2]
[394497280,1763633440305,-343.0,0.00017789,2]
[394497281,1763633440315,-529.81,0.00017801,2]
[394497282,1763633440325,-343.0,0.00017814,2]
[394497283,1763633440334,-343.0,0.0001783,2]
[394497284,1763633440344,-265.89224303,0.0001785,2]
[394497285,1763633440354,-150.12675746,0.0001785,2]
[394497286,1763633440363,-2408.96753187,0.0001785,2]
[394497287,1763633440373,-200.0,0.0001785,2]
[394497288,1763633440383,-200.0,0.0001785,2]
[394497289,1763633440394,-250.0,0.0001785,2]
[394497290,1763633440403,-300.0,0.0001785,2]
[394497291,1763633440413,-300.0,0.0001785,2]
[394497292,1763633440423,-300.0,0.0001785,2]
[394497293,1763633440433,-300.0,0.0001785,2]
[394497294,1763633440443,-300.0,0.0001785,2]
[394497295,1763633440452,-300.0,0.00017877,2]
[394497296,1763633440462,-200.0,0.00017877,2]
[394497297,1763633440472,-200.0,0.00017877,2]
[394497298,1763633440482,-200.0,0.00017877,2]
[394497299,1763633440491,-343.0,0.00017891,2]
[394497300,1763633440502,-500.0,0.000179,6]
[394497301,1763633440512,-343.0,0.0001792,2]
[394497302,1763633440521,-343.0,0.00017997,2]
[394497303,1763633440531,-6526.8,0.00018041,2]
[394497304,1763633440542,-529.81,0.00018075,2]
[394497305,1763633440552,-800.43,0.00018082,2]
[394497306,1763633440562,-412.16609389,0.00018121,2]
[394497307,1763633440573,-500.0,0.00018121,2]
[394497308,1763633440582,-500.0,0.00018153,2]
[394497309,1763633440592,-343.0,0.00018188,2]
[394497310,1763633440602,-1000.0,0.00018221,2]
[394497311,1763633440611,-472.7681954,0.0001825,2]
[394497312,1763633440622,-529.81,0.00018348,2]
[394497313,1763633440631,-343.0,0.0001842,2]
[394497314,1763633440641,-343.0,0.00018489,2]
[394497315,1763633440651,-343.0,0.00018517,2]
[394497316,1763633440660,-935.0,0.00018525,2]
[394497317,1763633440669,-2756.73,0.00018533,2]
[394497318,1763633440679,-246.91,0.00018533,2]
[394497319,1763633440688,-150.99,0.00018533,2]
[394497320,1763633440698,-299.99,0.00018533,4]
[394497321,1763633440708,-5638.17,0.00018533,2]
[394497322,1763633440717,-3371.0,0.00018533,2]
[394497323,1763633440727,-3469.86,0.00018533,2]
[394497324,1763633440739,-6526.8,0.00018556,2]
[394497325,1763633440748,-529.85,0.00018622,2]
[394497326,1763633440759,-343.0,0.00018674,2]
[394497327,1763633440768,-509.1770438,0.00018752,2]
[394497328,1763633440778,-800.43,0.0001876,2]
[394497329,1763633440787,-1500.0,0.00018768,2]
[394497330,1763633440798,-343.0,0.00018795,2]
[394497331,1763633440807,-343.0,0.00018818,2]
[394497332,1763633440817,-343.0,0.00018833,2]
[394497333,1763633440826,-343.0,0.00018836,2]
[394497334,1763633440836,-343.0,0.00018874,2]
[394497335,1763633440846,-343.0,0.00018885,2]
[394497336,1763633440855,-300.0,0.00019,2]
[394497337,1763633440865,-6526.8,0.00019072,2]
[394497338,1763633440874,-343.0,0.00019112,2]
[394497339,1763633440884,-480.0,0.0001912,2]
[394497340,1763633440893,-343.0,0.00019142,2]
[394497341,1763633440903,-343.0,0.00019239,2]
[394497342,1763633440912,-343.0,0.00019279,2]
[394497343,1763633440922,-500.0,0.00019316,2]
[394497344,1763633440931,-343.0,0.00019367,2]
[394497345,1763633440941,-500.0,0.00019375,2]
[394497346,1763633440951,-500.0,0.00019375,2]
[394497347,1763633440960,-500.0,0.00019375,2]
[394497348,1763633440970,-343.0,0.00019389,2]
[394497349,1763633440979,-800.43,0.00019438,2]
[394497350,1763633440989,-214.97423647,0.0001952,2]
[394497351,1763633440998,-500.0,0.0001952,2]
[394497352,1763633441007,-500.0,0.0001952,2]
[394497353,1763633441018,-500.0,0.0001952,2]
[394497354,1763633441028,-500.0,0.0001952,2]
[394497355,1763633441037,-500.0,0.0001952,2]
[394497356,1763633441048,-500.0,0.0001952,2]